bitfinex/quotes_SOLUSD_20220207
["timestamp","ask_amount","ask_price","bid_price","bid_amount"]
[1644215761355,18.21,118.06,117.99,25.77007444]
[1644215761556,18.21,118.06,117.99,24.56896865]
[1644215761757,6.0,118.06,117.99,25.77007444]
[1644215761954,18.21,118.09,117.99,25.77007444]
[1644215762154,12.21,118.09,117.99,25.77007444]
[1644215762757,12.46,118.09,117.99,26.02007444]
[1644215763656,18.46,118.09,117.99,26.02007444]
[1644215764060,18.46,118.09,117.99,32.02007444]
[1644215764260,18.46,118.09,117.99,26.02007444]
[1644215764958,18.46,118.09,117.99,32.02007444]
[1644215765157,18.46,118.09,117.99,26.02007444]
[1644215765559,18.46,118.09,117.99,31.77007444]
[1644215767161,18.46,118.09,117.99,32.02007444]
[1644215767862,18.46,118.09,117.99,30.56896865]
[1644215768161,18.46,118.09,117.99,31.77007444]
[1644215769163,18.46,118.09,117.99,32.02007444]
[1644215771564,1.87645318,118.08,117.99,24.56896865]
[1644215771765,12.21,118.07,117.99,22.7758]
[1644215771967,30.16624244,118.07,117.99,22.7758]
[1644215772165,36.41624244,118.07,117.99,22.7758]
[1644215772464,18.46,118.07,117.99,22.7758]
[1644215773064,18.46,118.07,117.99,23.0258]
[1644215775067,6.25,118.07,117.99,23.0258]
[1644215775267,6.25,118.07,117.99,24.22690579]
[1644215775469,18.21,118.09,117.99,24.22690579]
[1644215775867,18.21,118.09,117.99,23.0258]
[1644215776068,6.0,118.09,117.99,23.0258]
[1644215776268,12.21,118.08,117.99,22.7758]
[1644215776469,30.16415391,118.08,117.99,22.7758]
[1644215776668,36.16415391,118.08,117.99,22.7758]
[1644215776869,18.21,118.08,117.99,22.7758]
[1644215777295,18.46,118.08,117.99,22.7758]
[1644215777694,18.46,118.08,117.99,23.0258]
[1644215778497,18.46,118.08,117.99,22.7758]
[1644215780195,18.46,118.08,117.99,23.0258]
[1644215780596,18.46,118.08,117.99,22.7758]
[1644215780996,18.46,118.08,117.99,28.7758]
[1644215781197,18.46,118.08,117.99,22.7758]
[1644215781397,18.21,118.08,117.99,22.7758]
[1644215782199,18.21,118.08,117.99,23.0258]
[1644215782700,18.46,118.08,117.99,23.0258]
[1644215784703,6.25,118.08,117.99,23.0258]
[1644215785304,6.25,118.08,117.99,24.22690579]
[1644215785803,6.25,118.08,117.99,30.22690579]
[1644215786004,0.25,118.08,117.99,24.22690579]
[1644215786204,6.0,118.08,117.99,24.22690579]
[1644215786504,18.21,118.08,117.99,23.0258]
[1644215786704,18.46,118.08,117.99,23.0258]
[1644215787508,18.46,118.08,117.99,24.22690579]
[1644215788105,18.46,118.08,117.99,23.0258]
[1644215788305,18.46,118.08,117.99,24.22690579]
[1644215788706,18.46,118.08,117.99,30.22690579]
[1644215789107,18.46,118.08,117.99,24.22690579]
[1644215790208,6.0,118.08,118.0,1.20110579]
[1644215790408,6.0,118.08,118.0,2.98523917]
[1644215790607,19.41555363,118.1,118.0,1.45110579]
[1644215791909,19.41555363,118.1,118.0,0.25]
[1644215792109,19.17050821,118.09,118.0,0.25]
[1644215792310,31.63050821,118.09,117.99,23.97690579]
[1644215792513,17.96495458,118.08,117.99,23.97690579]
[1644215792711,14.12436939,118.07,117.99,22.7758]
[1644215793113,19.66555363,118.07,117.99,22.7758]
[1644215793313,18.46,118.07,117.99,22.7758]
[1644215796318,18.21,118.07,117.99,22.7758]
[1644215797318,18.21,118.07,117.99,23.0258]
[1644215797721,18.46,118.07,117.99,23.0258]
[1644215798320,18.21,118.07,117.99,23.0258]
[1644215798621,6.0,118.07,117.99,29.0258]
[1644215798820,6.0,118.07,117.99,30.22690579]
[1644215799020,12.21,118.08,117.99,30.22690579]
[1644215799221,18.21,118.08,117.99,30.22690579]
[1644215799845,18.21,118.08,117.99,29.0258]
[1644215800823,18.46,118.08,117.99,30.22690579]
[1644215801822,18.46,118.08,117.99,24.22690579]
[1644215802022,18.46,118.08,117.99,23.0258]
[1644215803121,18.46,118.08,117.99,24.22690579]
[1644215804145,18.46,118.08,117.99,23.97690579]
[1644215804343,18.46,118.08,117.99,22.7758]
[1644215804544,18.46,118.08,117.99,23.0258]
[1644215805045,19.66555363,118.08,117.99,22.7758]
[1644215805246,19.66555363,118.08,117.99,23.0258]
[1644215805446,23.9977,118.07,117.99,23.0258]
[1644215805646,42.4577,118.07,117.99,22.7758]
[1644215805848,30.2477,118.07,117.99,23.0258]
[1644215806047,30.2477,118.07,117.99,22.7758]
[1644215806252,30.2477,118.07,117.99,23.0258]
[1644215806648,30.2477,118.07,117.99,22.7758]
[1644215806848,12.21,118.06,117.98,41.58619157]
[1644215807247,19.66555363,118.06,117.98,41.58619157]
[1644215807448,18.46,118.06,117.98,41.58619157]
[1644215808255,18.46,118.06,117.98,41.83619157]
[1644215808848,18.46,118.06,117.98,41.58619157]
[1644215809050,31.1759,118.06,117.98,41.58619157]
[1644215809249,31.1759,118.06,117.98,41.83619157]
[1644215809548,31.1759,118.06,117.99,24.5394]
[1644215809748,31.1759,118.06,117.98,41.58619157]
[1644215810952,32.13145363,118.06,117.98,41.58619157]
[1644215811156,30.9259,118.06,117.98,41.58619157]
[1644215811351,32.13145363,118.06,117.98,41.58619157]
[1644215811751,30.9259,118.06,117.98,41.58619157]
[1644215812352,30.9259,118.06,117.98,41.83619157]
[1644215812558,18.21,118.06,117.98,43.62022486]
[1644215813053,18.21,118.06,117.98,41.83619157]
[1644215813256,18.21,118.06,117.99,24.6013]
[1644215813653,18.21,118.06,117.99,24.8513]
[1644215813954,12.21,118.06,117.99,24.6013]
[1644215814353,12.46,118.06,117.99,24.8513]
[1644215814955,12.46,118.06,117.99,24.6013]
[1644215815155,18.21,118.06,117.99,24.6013]
[1644215815356,18.21,118.06,117.99,24.8513]
[1644215816654,18.46,118.06,117.99,24.8513]
[1644215817655,18.46,118.06,117.99,24.6013]
[1644215818257,18.46,118.06,117.98,41.58619157]
[1644215818957,18.46,118.06,117.99,24.1885]
[1644215819456,18.46,118.06,117.98,41.58619157]
[1644215820057,18.46,118.06,117.99,24.3258]
[1644215820858,18.46,118.06,117.99,24.5758]
[1644215821258,6.25,118.06,117.98,41.58619157]
[1644215821558,12.46,118.06,117.98,41.58619157]
[1644215821756,18.46,118.06,117.98,41.58619157]
[1644215823557,18.46,118.06,117.98,41.83619157]
[1644215823757,18.46,118.06,117.98,41.58619157]
[1644215824457,18.46,118.06,117.99,23.4825]
[1644215833868,18.21,118.06,117.99,23.4825]
[1644215835271,18.21,118.06,117.99,23.7325]
[1644215836073,18.21,118.06,117.99,23.4825]
[1644215836074,18.46,118.06,117.99,23.4825]
[1644215836875,18.46,118.06,117.98,41.58619157]
[1644215838097,31.175,118.06,117.98,41.58619157]
[1644215840297,32.10845914,118.06,117.98,41.58619157]
[1644215840698,31.175,118.06,117.98,41.58619157]
[1644215842298,18.46,118.06,117.98,41.58619157]
[1644215843401,18.46,118.06,117.98,41.83619157]
[1644215843603,18.46,118.06,117.99,22.5186]
[1644215843801,19.66555363,118.06,117.99,22.5186]
[1644215845100,19.66555363,118.06,117.98,41.58619157]
[1644215845300,19.66555363,118.06,117.96,1.20110579]
[1644215845502,19.66555363,118.06,117.96,24.48420579]
[1644215845503,36.1942,118.05,117.96,24.48420579]
[1644215845704,12.21,118.04,117.95,25.88210579]
[1644215845902,13.41555363,118.04,117.95,24.681]
[1644215846106,23.90255363,118.04,117.95,24.681]
[1644215846302,23.90255363,118.04,117.96,36.94877752]
[1644215846504,24.6997,118.03,117.96,36.94877752]
[1644215846703,12.21,118.02,117.96,36.94877752]
[1644215847103,0.03477317,117.96,117.94,1.20110579]
[1644215847304,6.06439994,117.95,117.91,1.20110579]
[1644215847505,6.06439994,117.95,117.9,24.21350579]
[1644215847703,6.06439994,117.95,117.86,23.233]
[1644215847704,12.06439994,117.95,117.89,1.20110579]
[1644215848105,12.06439994,117.95,117.9,35.34723206]
[1644215849107,12.06439994,117.95,117.89,1.20110579]
[1644215849505,12.06439994,117.95,117.88,1.20110579]
[1644215850107,12.06439994,117.95,117.89,42.72182721]
[1644215850307,12.06439994,117.95,117.89,43.922933]
[1644215850508,12.06439994,117.95,117.89,42.72182721]
[1644215850708,12.06439994,117.95,117.89,42.97182721]
[1644215850908,6.06439994,117.95,117.89,42.97182721]
[1644215851108,0.03477317,117.96,117.89,44.74835992]
[1644215851314,0.03477317,117.96,117.9,24.7796]
[1644215851808,0.03477317,117.96,117.9,26.80613271]
[1644215852609,0.03477317,117.96,117.9,25.0296]
[1644215853010,0.03477317,117.96,117.9,24.7796]
[1644215854510,0.03477317,117.96,117.9,49.2633]
[1644215854709,0.03477317,117.96,117.9,49.5133]
[1644215855309,0.03477317,117.96,117.9,49.2633]
[1644215855509,0.03477317,117.96,117.9,49.5133]
[1644215857113,0.03477317,117.96,117.91,4.239]
[1644215857313,0.03477317,117.96,117.91,4.489]
[1644215857514,0.03477317,117.96,117.91,4.239]
[1644215857712,0.03477317,117.96,117.91,0.25]
[1644215857913,0.03477317,117.96,117.9,24.226]
[1644215860114,0.03477317,117.96,117.9,24.476]
[1644215860717,0.03477317,117.96,117.89,42.72182721]
[1644215861916,18.46,117.97,117.89,42.72182721]
[1644215862919,18.46,117.97,117.87,23.6163]
[1644215863119,18.46,117.97,117.86,23.4625]
[1644215863822,22.8568,117.96,117.87,22.9653]
[1644215864024,12.21,117.95,117.88,48.76215204]
[1644215864223,12.46,117.95,117.88,48.76215204]
[1644215864422,18.46,117.95,117.88,48.76215204]
[1644215864624,18.46,117.95,117.88,49.01215204]
[1644215865223,18.21,117.95,117.88,49.01215204]
[1644215865423,6.0,117.95,117.89,1.77653271]
[1644215865624,18.21,117.97,117.89,25.87003271]
[1644215865822,18.21,117.97,117.89,26.12003271]
[1644215866223,18.21,117.97,117.89,24.43840071]
[1644215866423,18.21,117.97,117.89,24.0935]
[1644215867223,18.46,117.97,117.89,24.3435]
[1644215867624,6.0,117.97,117.89,24.3435]
[1644215868025,22.61231973,117.99,117.89,24.3435]
[1644215868225,12.21,117.99,117.89,30.3435]
[1644215868424,26.96304658,118.01,117.89,30.3435]
[1644215868636,45.17304658,118.01,117.89,30.3435]
[1644215868924,45.42304658,118.01,117.89,30.3435]
[1644215869726,45.17304658,118.01,117.89,30.3435]
[1644215869928,45.17304658,118.01,117.89,43.0612]
[1644215870325,40.7709,118.01,117.89,43.0612]
[1644215870528,40.7709,118.01,117.89,30.3435]
[1644215871129,45.2599,118.01,117.89,30.0935]
[1644215871528,57.7304,118.01,117.89,30.0935]
[1644215872129,53.4914,118.01,117.89,30.0935]
[1644215872329,53.4914,118.01,117.89,30.3435]
[1644215872729,53.7414,118.01,117.89,30.3435]
[1644215872929,47.7414,118.01,117.89,30.3435]
[1644215874133,47.7414,118.01,117.89,31.54460579]
[1644215874337,53.7414,118.01,117.89,31.54460579]
[1644215875033,53.4914,118.01,117.89,31.54460579]
[1644215875234,54.69695363,118.01,117.89,31.54460579]
[1644215876239,54.94695363,118.01,117.89,31.54460579]
[1644215877140,54.94695363,118.01,117.9,1.20110579]
[1644215877339,54.94695363,118.01,117.9,1.45110579]
[1644215877540,1.20555363,118.0,117.89,25.54460579]
[1644215877739,24.9328,117.99,117.89,25.54460579]
[1644215877940,48.2135,117.99,117.89,24.3435]
[1644215878141,55.66905363,117.99,117.89,24.3435]
[1644215878563,55.66905363,117.99,117.89,24.0935]
[1644215878739,55.41905363,117.99,117.89,24.0935]
[1644215878939,54.2135,117.99,117.89,25.29460579]
[1644215880241,54.4635,117.99,117.89,25.29460579]
[1644215880641,54.4635,117.99,117.9,1.77769574]
[1644215880845,54.4635,117.99,117.9,0.25]
[1644215881144,54.4635,117.99,117.9,1.77769574]
[1644215881341,54.4635,117.99,117.9,2.02769574]
[1644215883748,54.2135,117.99,117.9,2.02769574]
[1644215884048,41.4907,117.99,117.9,2.02769574]
[1644215885048,41.7407,117.99,117.9,1.77769574]
[1644215886569,41.7407,117.99,117.9,2.02769574]
[1644215886769,42.94625363,117.99,117.9,2.02769574]
[1644215887370,41.7407,117.99,117.9,0.25]
[1644215887777,41.7407,117.99,117.89,25.54460579]
[1644215888172,42.94625363,117.99,117.89,25.54460579]
[1644215888371,42.94625363,117.99,117.89,31.54460579]
[1644215888573,42.94625363,117.99,117.89,25.29460579]
[1644215888771,41.7407,117.99,117.89,25.29460579]
[1644215889775,41.7407,117.99,117.89,25.54460579]
[1644215891575,41.7407,117.99,117.89,25.29460579]
[1644215892777,41.7407,117.99,117.89,25.54460579]
[1644215893176,42.94625363,117.99,117.89,25.54460579]
[1644215893377,42.94625363,117.99,117.89,24.0935]
[1644215893578,42.94625363,117.99,117.89,24.3435]
[1644215893778,42.94625363,117.99,117.89,24.0935]
[1644215893979,36.94625363,117.99,117.89,24.0935]
[1644215894580,1.20555363,117.98,117.89,24.0935]
[1644215894778,13.66555363,117.98,117.89,24.0935]
[1644215895181,22.8126,117.97,117.89,24.0935]
[1644215895378,12.21,117.96,117.89,24.0935]
[1644215895579,18.21,117.96,117.89,24.0935]
[1644215895979,12.21,117.96,117.89,24.0935]
[1644215896983,12.46,117.96,117.89,24.0935]
[1644215897983,18.46,117.96,117.89,24.0935]
[1644215900386,18.21,117.96,117.89,24.0935]
[1644215900585,18.21,117.96,117.89,24.3435]
[1644215900784,18.21,117.96,117.89,24.0935]
[1644215900984,22.60982488,117.96,117.89,24.0935]
[1644215901787,22.85982488,117.96,117.89,24.0935]
[1644215902587,18.21,117.96,117.89,24.3435]
[1644215902790,12.21,117.96,117.89,24.3435]
[1644215903390,22.8126,117.97,117.89,24.3435]
[1644215904192,23.0626,117.97,117.89,24.0935]
[1644215904393,35.2726,117.97,117.89,24.0935]
[1644215905496,53.9977,117.97,117.89,24.0935]
[1644215907194,55.20325363,117.97,117.89,24.0935]
[1644215907395,53.9977,117.97,117.89,24.0935]
[1644215912319,53.7477,117.97,117.89,24.0935]
[1644215913797,53.9977,117.97,117.89,24.0935]
[1644215915401,53.7477,117.97,117.89,24.0935]
[1644215915798,54.95325363,117.97,117.89,24.0935]
[1644215916398,54.95325363,117.97,117.86,71.43406531]
[1644215916399,54.95325363,117.97,117.86,72.6351711]
[1644215916600,54.95325363,117.97,117.86,78.6351711]
[1644215916799,55.20325363,117.97,117.87,1.77669775]
[1644215917400,54.95325363,117.97,117.87,7.77669775]
[1644215917699,54.95325363,117.97,117.87,1.77669775]
[1644215917905,54.95325363,117.97,117.87,26.09089775]
[1644215918102,54.95325363,117.97,117.87,32.09089775]
[1644215918501,54.95325363,117.97,117.87,31.84089775]
[1644215918702,55.20325363,117.97,117.88,47.93547497]
[1644215918901,55.20325363,117.97,117.88,49.71217272]
[1644215919101,53.9977,117.97,117.89,24.8992]
[1644215919303,47.9977,117.97,117.89,25.1492]
[1644215919502,47.9977,117.97,117.89,24.8992]
[1644215920102,47.7477,117.97,117.89,24.8992]
[1644215920707,53.7477,117.97,117.89,24.8992]
[1644215921505,53.7477,117.97,117.87,1.20110579]
[1644215921805,55.20325363,117.97,117.87,24.64960579]
[1644215922204,55.20325363,117.97,117.87,26.67630354]
[1644215922404,53.9977,117.97,117.87,26.67630354]
[1644215922604,53.9977,117.97,117.88,36.84456376]
[1644215922805,53.9977,117.97,117.89,24.8434]
[1644215923207,53.9977,117.97,117.88,36.84456376]
[1644215923408,53.9977,117.97,117.89,24.2163]
[1644215924008,55.20325363,117.97,117.89,24.2163]
[1644215924409,53.9977,117.97,117.89,24.2163]
[1644215924708,41.2726,117.97,117.89,24.2163]
[1644215925116,42.47815363,117.97,117.89,24.2163]
[1644215925316,42.22815363,117.97,117.89,24.2163]
[1644215925916,41.0226,117.97,117.89,24.4663]
[1644215926318,41.0226,117.97,117.89,24.2163]
[1644215926718,41.0226,117.97,117.89,24.4663]
[1644215926917,41.0226,117.97,117.89,24.2163]
[1644215927118,42.22815363,117.97,117.89,24.2163]
[1644215927827,42.47815363,117.97,117.89,24.2163]
[1644215929229,42.22815363,117.97,117.89,24.2163]
[1644215929429,41.0226,117.97,117.89,24.2163]
[1644215929629,35.0226,117.97,117.89,24.2163]
[1644215930132,36.22815363,117.97,117.89,24.2163]
[1644215930532,35.0226,117.97,117.89,25.99338513]
[1644215930733,35.2726,117.97,117.89,25.99338513]
[1644215931229,35.2726,117.97,117.89,24.2163]
[1644215931230,36.47815363,117.97,117.89,24.2163]
[1644215932230,41.2726,117.97,117.89,24.4663]
[1644215932429,35.2726,117.97,117.89,24.4663]
[1644215932630,41.2726,117.97,117.89,24.4663]
[1644215933029,42.47815363,117.97,117.89,24.2163]
[1644215933233,36.47815363,117.97,117.89,24.2163]
[1644215933531,36.47815363,117.97,117.89,24.4663]
[1644215933730,42.47815363,117.97,117.89,24.2163]
[1644215933930,35.2726,117.97,117.89,30.2163]
[1644215934131,35.0226,117.97,117.89,24.2163]
[1644215934331,36.22815363,117.97,117.89,24.2163]
[1644215934836,36.22815363,117.97,117.89,30.2163]
[1644215935030,36.22815363,117.97,117.89,24.2163]
[1644215935730,36.47815363,117.97,117.89,24.2163]
[1644215936133,36.47815363,117.97,117.89,30.2163]
[1644215936330,36.47815363,117.97,117.89,24.2163]
[1644215937933,13.41555363,117.97,117.89,24.2163]
[1644215938137,1.20555363,117.97,117.89,32.24338513]
[1644215938336,1.20555363,117.98,117.89,32.24338513]
[1644215938638,1.20555363,117.98,117.89,33.44449092]
[1644215939635,1.20555363,117.98,117.89,32.24338513]
[1644215940034,1.45555363,117.98,117.89,32.24338513]
[1644215941836,17.98052116,117.97,117.89,32.24338513]
[1644215942037,16.48052116,117.97,117.89,32.24338513]
[1644215942237,16.73052116,117.97,117.89,32.24338513]
[1644215942637,0.25,117.97,117.89,26.24338513]
[1644215943237,24.8503,117.97,117.89,26.24338513]
[1644215943438,26.05585363,117.97,117.89,26.24338513]
[1644215943640,26.30585363,117.97,117.89,25.99338513]
[1644215944842,25.1003,117.97,117.89,25.99338513]
[1644215945042,25.1003,117.97,117.89,26.24338513]
[1644215945240,25.1003,117.97,117.89,32.24338513]
[1644215945440,0.25,117.97,117.89,32.24338513]
[1644215945640,1.45555363,117.98,117.89,32.24338513]
[1644215948045,1.45555363,117.98,117.89,33.44449092]
[1644215948246,1.20555363,117.99,117.89,33.44449092]
[1644215948445,1.20555363,117.99,117.9,1.20110579]
[1644215948647,1.20555363,117.99,117.9,7.20110579]
[1644215948845,1.20555363,117.99,117.92,34.77227167]
[1644215949050,1.20555363,117.99,117.93,24.5828]
[1644215949250,24.43825363,118.0,117.93,24.5828]
[1644215949652,24.68825363,118.0,117.93,24.5828]
[1644215950049,24.68825363,118.0,117.93,26.34189608]
[1644215950449,24.68825363,118.0,117.93,24.5828]
[1644215950650,24.68825363,118.0,117.93,30.5828]
[1644215951050,23.4827,118.0,117.93,30.5828]
[1644215951654,0.25,118.0,117.93,30.5828]
[1644215951852,1.45555363,118.01,117.93,30.5828]
[1644215952952,1.45555363,118.01,117.94,1.75909608]
[1644215953152,1.45555363,118.01,117.94,7.75909608]
[1644215953451,0.25,118.01,117.95,1.75909608]
[1644215953852,1.20555363,118.03,117.96,47.56803222]
[1644215953853,1.45555363,118.03,117.96,47.56803222]
[1644215954154,24.03045363,118.03,117.93,30.5828]
[1644215954553,30.03045363,118.03,117.93,30.5828]
[1644215954751,1.20555363,118.02,117.93,30.5828]
[1644215954951,1.20555363,118.02,117.94,39.19331386]
[1644215955153,6.25,118.02,117.94,39.19331386]
[1644215955552,24.4717,118.01,117.95,22.8048]
[1644215955753,24.7217,118.01,117.95,22.8048]
[1644215956955,30.7217,118.01,117.95,22.8048]
[1644215957154,24.7217,118.01,117.95,22.8048]
[1644215957554,30.7217,118.01,117.95,22.8048]
[1644215961359,12.21,118.0,117.9,23.94680579]
[1644215961561,18.21,118.0,117.91,22.8919]
[1644215961759,20.5656109,118.0,117.99,2.4079267]
[1644215961962,24.8026109,118.0,117.91,22.8919]
[1644215962160,24.664,117.99,117.91,22.8919]
[1644215962360,37.124,117.99,117.91,22.8919]
[1644215962660,43.124,117.99,117.91,22.8919]
[1644215963060,17.79651006,117.98,117.88,36.95508078]
[1644215963260,12.21,117.97,117.88,36.95508078]
[1644215963460,38.8165109,117.97,117.88,36.95508078]
[1644215963668,45.0665109,117.97,117.88,36.95508078]
[1644215963860,42.9609,117.97,117.88,36.95508078]
[1644215964060,42.9609,117.97,117.89,23.9743]
[1644215964464,42.9609,117.97,117.88,36.95508078]
[1644215965264,12.46,117.97,117.89,23.4854]
[1644215965466,0.25,117.97,117.89,23.4854]
[1644215965664,24.6877,117.99,117.89,23.7354]
[1644215965864,24.6877,117.99,117.89,25.49449608]
[1644215966065,24.55255363,118.01,117.89,31.49449608]
[1644215966264,1.20555363,118.01,117.89,43.70449608]
[1644215966465,1.20555363,118.03,117.9,15.9767499]
[1644215966666,1.20555363,118.03,117.92,42.09896022]
[1644215967067,1.20555363,118.04,117.93,1.75909608]
[1644215967463,1.20555363,118.04,117.93,32.28539608]
[1644215967865,1.20555363,118.04,117.94,1.75909608]
[1644215968065,1.20555363,118.04,117.94,7.75909608]
[1644215968265,5.19340909,118.02,117.93,24.5263]
[1644215968887,0.25,118.02,117.93,24.5263]
[1644215969287,28.37495363,118.03,117.93,24.5263]
[1644215969489,24.13695363,118.03,117.93,24.5263]
[1644215969692,22.9314,118.03,117.93,24.5263]
[1644215970189,28.9314,118.03,117.93,24.5263]
[1644215970390,30.13695363,118.03,117.93,24.5263]
[1644215970590,29.88695363,118.03,117.93,24.5263]
[1644215971389,29.88695363,118.03,117.93,26.27187939]
[1644215972090,30.13695363,118.03,117.93,26.27187939]
[1644215972489,30.13695363,118.03,117.93,32.27187939]
[1644215972689,30.13695363,118.03,117.93,26.27187939]
[1644215973689,30.13695363,118.03,117.93,24.5263]
[1644215973890,30.13695363,118.03,117.93,26.26747832]
[1644215975490,30.13695363,118.03,117.93,32.26747832]
[1644215976090,30.13695363,118.03,117.93,26.26747832]
[1644215976495,30.13695363,118.03,117.93,32.26747832]
[1644215976496,24.13695363,118.03,117.93,32.26747832]
[1644215979593,30.13695363,118.03,117.93,32.26747832]
[1644215979794,24.13695363,118.03,117.93,32.26747832]
[1644215981196,23.88695363,118.03,117.93,32.51747832]
[1644215981598,22.6814,118.03,117.93,32.51747832]
[1644215982400,23.88695363,118.03,117.93,32.51747832]
[1644215982602,22.9314,118.03,117.93,32.51747832]
[1644215982800,28.9314,118.03,117.93,32.51747832]
[1644215983000,22.9314,118.03,117.93,32.51747832]
[1644215983804,24.13695363,118.03,117.93,32.51747832]
[1644215984204,30.13695363,118.03,117.93,32.51747832]
[1644215984404,24.13695363,118.03,117.93,32.51747832]
[1644215984603,28.9314,118.03,117.93,32.51747832]
[1644215988108,30.13695363,118.03,117.93,32.51747832]
[1644215988307,28.9314,118.03,117.93,32.51747832]
[1644215988507,30.13695363,118.03,117.93,32.26747832]
[1644215988709,28.9314,118.03,117.93,32.26747832]
[1644215988907,30.13695363,118.03,117.93,32.26747832]
[1644215991111,28.9314,118.03,117.94,12.21]
[1644215991311,28.9314,118.03,117.94,12.46]
[1644215991511,22.6814,118.03,117.95,1.74103796]
[1644215991709,22.6814,118.03,117.96,48.28307951]
[1644215992110,22.6814,118.03,117.96,50.02411747]
[1644215992811,22.9314,118.03,117.96,50.02411747]
[1644215993010,24.13695363,118.03,117.96,50.02411747]
[1644215993209,24.13695363,118.03,117.96,48.28307951]
[1644215993411,30.13695363,118.03,117.96,48.28307951]
[1644215994810,24.13695363,118.03,117.96,48.28307951]
[1644215995711,22.9314,118.03,117.96,48.28307951]
[1644215995910,22.6814,118.03,117.96,48.28307951]
[1644215996111,23.88695363,118.03,117.96,48.28307951]
[1644215996511,23.88695363,118.03,117.96,50.02411747]
[1644215997112,1.20555363,118.02,117.96,50.02411747]
[1644215997311,1.45555363,118.02,117.96,50.02411747]
[1644215997911,0.25,118.02,117.96,50.02411747]
[1644215998611,0.25,118.02,117.97,24.8905]
[1644215998813,24.13695363,118.03,117.97,24.8905]
[1644216000315,24.13695363,118.03,117.96,50.02411747]
[1644216000515,30.13695363,118.03,117.96,50.02411747]
[1644216000718,24.13695363,118.03,117.96,50.02411747]
[1644216000915,24.13695363,118.03,117.97,22.8383]
[1644216001818,1.45555363,118.03,117.97,22.8383]
[1644216002018,0.25,118.03,117.97,22.8383]
[1644216002218,1.45555363,118.04,117.97,22.8383]
[1644216002519,1.20555363,118.04,117.97,22.8383]
[1644216002720,1.45555363,118.04,117.97,22.8383]
[1644216005619,0.25,118.04,117.97,22.8383]
[1644216005825,1.45555363,118.05,117.97,22.8383]
[1644216006020,7.20555363,118.05,117.97,22.8383]
[1644216006218,7.45555363,118.05,117.97,22.8383]
[1644216009426,6.25,118.05,117.97,24.8204981]
[1644216009625,0.25,118.05,117.97,24.8204981]
[1644216009824,6.0,118.05,117.97,24.8204981]
[1644216010026,6.0,118.05,117.97,30.8204981]
[1644216010226,6.25,118.05,117.97,30.8204981]
[1644216010425,1.20555363,118.06,117.97,43.5295981]
[1644216010426,7.20555363,118.06,117.97,43.5295981]
[1644216010625,24.83269307,118.09,117.97,71.716348]
[1644216010827,1.20555363,118.09,117.97,71.716348]
[1644216011025,1.20555363,118.09,117.98,1.20110579]
[1644216011226,1.20555363,118.1,118.0,38.01628706]
[1644216011427,1.20555363,118.1,118.01,24.7957]
[1644216011825,24.00915363,118.11,118.01,26.7778981]
[1644216012026,24.00915363,118.11,118.02,1.7321981]
[1644216012225,1.20555363,118.11,118.02,7.9821981]
[1644216012426,49.77596001,118.14,118.04,45.10905739]
[1644216012427,1.20555363,118.12,118.04,45.10905739]
[1644216012827,1.20555363,118.12,118.05,1.7321981]
[1644216013226,1.20555363,118.12,118.05,26.1039981]
[1644216013646,1.20555363,118.13,118.05,26.1039981]
[1644216013829,1.45555363,118.13,118.05,26.1039981]
[1644216014030,7.20555363,118.13,118.05,26.1039981]
[1644216014330,7.45555363,118.13,118.05,26.1039981]
[1644216015330,7.45555363,118.13,118.05,24.3718]
[1644216016134,6.25,118.13,118.05,24.3718]
[1644216016536,7.20555363,118.14,118.05,24.3718]
[1644216016734,1.20555363,118.15,118.06,1.7321981]
[1644216016936,1.20555363,118.17,118.07,12.21]
[1644216017136,1.20555363,118.18,118.08,23.9318]
[1644216017354,1.20555363,118.18,118.08,25.9139981]
[1644216017557,1.20555363,118.17,118.09,39.60003596]
[1644216017855,1.20555363,118.19,118.09,49.25403596]
[1644216018054,1.20555363,118.19,118.1,25.7968981]
[1644216018655,17.72199171,118.18,118.1,24.0647]